bitfinex/quotes_SOLUSD_20260208
["timestamp","ask_amount","ask_price","bid_price","bid_amount"]
[1770541979675,13.70061443,88.46,88.425,0.49871631]
[1770541979874,0.48366535,88.459,88.425,0.49871631]
[1770541980477,0.48366535,88.449,88.425,0.49871631]
[1770541981683,0.48366535,88.457,88.425,0.49871631]
[1770541981880,18.40315195,88.463,88.425,0.49871631]
[1770541982185,0.48366535,88.462,88.425,0.49871631]
[1770541982381,0.48366535,88.462,88.427,0.49871631]
[1770541982580,0.48366535,88.459,88.429,0.49871631]
[1770541982788,11.30074672,88.49,88.463,0.49871631]
[1770541983280,13.70061443,88.48,88.44,13.70061443]
[1770541983576,0.48366535,88.483,88.451,0.49871631]
[1770541984985,11.30173368,88.482,88.452,0.49871631]
[1770541985186,11.78539903,88.482,88.452,0.49871631]
[1770541986269,14.22459463,88.49,88.454,0.49241155]
[1770541986474,0.5239802,88.49,88.461,0.49241155]
[1770541987588,11.30052248,88.492,88.463,0.49241155]
[1770541987771,11.82450268,88.492,88.463,0.49241155]
[1770541988694,0.5239802,88.492,88.465,0.49241155]
[1770541989491,7.10216002,88.495,88.471,0.49241155]
[1770541989695,11.30020114,88.494,88.471,0.49241155]
[1770541990391,11.30020114,88.494,88.46,13.70061443]
[1770541990392,0.5239802,88.493,88.463,0.49241155]
[1770541990591,0.5239802,88.489,88.455,0.49241155]
[1770541990785,0.5239802,88.489,88.458,11.30471995]
[1770541991093,0.5239802,88.489,88.458,11.7971315]
[1770541991292,0.5239802,88.489,88.459,0.49241155]
[1770541991893,0.5239802,88.489,88.461,0.49241155]
[1770541992101,7.10216002,88.495,88.481,0.49241155]
[1770541992990,6.04291698,88.495,88.484,0.49241155]
[1770541993200,6.04291698,88.495,88.48,13.70061443]
[1770541993388,6.04291698,88.495,88.48,13.6804024]
[1770541997094,6.04291698,88.495,88.471,0.11041066]
[1770541997793,0.47849472,88.489,88.45,13.79081306]
[1770541998094,0.47849472,88.489,88.451,0.11051163]
[1770541998679,6.04291698,88.495,88.461,0.11051163]
[1770541998886,0.47849472,88.494,88.461,0.11051163]
[1770541999087,0.47849472,88.493,88.461,0.11051163]
[1770541999289,0.47849472,88.489,88.46,11.30447851]
[1770541999591,6.04291698,88.495,88.471,0.10982276]
[1770541999999,0.47849472,88.494,88.464,0.1091418]
[1770542000200,0.47849472,88.494,88.47,5.11016126]
[1770542000500,6.04291698,88.495,88.471,0.1091418]
[1770542000992,0.47849472,88.494,88.47,5.11016126]
[1770542001195,0.47849472,88.494,88.471,11.30313888]
[1770542001810,0.47849472,88.494,88.48,5.11016126]
[1770542001976,0.47849472,88.494,88.471,11.30313888]
[1770542002299,0.47849472,88.494,88.46,5.11016126]
[1770542002684,0.47849472,88.493,88.465,11.30379847]
[1770542004597,0.47849472,88.493,88.47,5.21665654]
[1770542005987,0.47849472,88.493,88.471,11.30313888]
[1770542006500,6.04291698,88.495,88.472,0.10521719]
[1770542006712,6.5214117,88.495,88.472,0.10521719]
[1770542007718,11.77869586,88.494,88.47,5.11016126]
[1770542008015,0.47849472,88.493,88.47,5.11016126]
[1770542008309,0.47849472,88.493,88.462,0.10396828]
[1770542008506,0.47849472,88.491,88.465,11.30387342]
[1770542009506,0.47849472,88.491,88.469,11.30331482]
[1770542009806,0.47849472,88.491,88.471,11.30313888]
[1770542011604,0.47849472,88.494,88.471,11.30313888]
[1770542012708,0.47849472,88.494,88.46,5.11016126]
[1770542012896,0.47849472,88.494,88.448,28.26497106]
[1770542012897,0.47849472,88.489,88.447,11.40707398]
[1770542013095,0.47849472,88.489,88.451,11.30559385]
[1770542013306,0.47849472,88.489,88.453,11.30543904]
[1770542014005,0.47849472,88.489,88.453,11.40582916]
[1770542014397,6.04291698,88.495,88.461,0.10039012]
[1770542014602,6.5214117,88.495,88.471,0.10039012]
[1770542014903,0.47849472,88.494,88.471,0.10039012]
[1770542015305,0.47849472,88.494,88.47,5.11016126]
[1770542015517,0.47849472,88.494,88.46,5.11016126]
[1770542015815,0.49438752,88.489,88.453,11.30543904]
[1770542016195,0.49438752,88.489,88.46,5.11016126]
[1770542016800,0.49438752,88.489,88.461,0.09813882]
[1770542017317,0.49438752,88.489,88.46,5.11016126]
[1770542018314,0.49438752,88.489,88.461,11.30441663]
[1770542020112,0.49438752,88.487,88.46,5.11016126]
[1770542020832,0.49438752,88.487,88.46,16.41470116]
[1770542023096,0.49438752,88.487,88.453,0.09651732]
[1770542023497,0.49438752,88.487,88.46,5.11016126]
[1770542024216,0.49438752,88.487,88.461,0.0944409]
[1770542025124,0.49438752,88.487,88.461,11.30441663]
[1770542025322,0.49438752,88.487,88.461,11.39835325]
[1770542025618,0.49438752,88.487,88.461,11.30441663]
[1770542025803,0.49438752,88.487,88.456,11.30501203]
[1770542026118,0.49438752,88.487,88.456,11.39845016]
[1770542026419,0.49438752,88.487,88.46,16.41469221]
[1770542027623,0.49438752,88.485,88.46,5.11016126]
[1770542028124,0.49438752,88.485,88.455,11.30514457]
[1770542028507,0.49438752,88.485,88.455,11.39760283]
[1770542029620,0.49438752,88.485,88.455,0.09245826]
[1770542029818,0.49438752,88.485,88.451,0.09150077]
[1770542030205,0.49438752,88.485,88.46,5.11016126]
[1770542030425,0.49438752,88.485,88.451,0.09150077]
[1770542030734,0.49438752,88.485,88.46,5.11016126]
[1770542031326,0.49438752,88.493,88.47,5.11016126]
[1770542032205,0.49438752,88.493,88.46,5.11016126]
[1770542032406,0.49438752,88.493,88.461,0.09056514]
[1770542032601,0.49438752,88.493,88.461,11.30441663]
[1770542032900,0.49438752,88.493,88.462,0.09056514]
[1770542036525,0.49438752,88.493,88.46,5.11016126]
[1770542036825,0.49438752,88.491,88.455,11.30507689]
[1770542037025,11.30045653,88.492,88.453,0.08831852]
[1770542037026,0.49438752,88.489,88.453,0.08831852]
[1770542040130,0.49438752,88.487,88.453,0.08831852]
[1770542041005,0.49438752,88.487,88.46,5.11016126]
[1770542041824,0.49438752,88.487,88.453,0.08619798]
[1770542042027,17.34308855,88.495,88.461,0.08619798]
[1770542042220,11.79458866,88.494,88.462,0.08619798]
[1770542042420,0.49438752,88.493,88.462,0.08619798]
[1770542042832,0.49438752,88.493,88.462,0.08578838]
[1770542043543,0.49438752,88.489,88.451,0.08578838]
[1770542044331,0.49438752,88.489,88.452,0.08538348]
[1770542045038,0.49438752,88.469,88.444,11.30654885]
[1770542045941,0.49438752,88.469,88.448,11.30605937]
[1770542046642,0.51628051,88.481,88.451,0.08419647]
[1770542047135,0.51628051,88.481,88.393,45.25241708]
[1770542047136,0.51628051,88.469,88.438,11.30727294]
[1770542047339,0.51628051,88.469,88.434,0.08380985]
[1770542049328,0.51628051,88.469,88.43,5.11016126]
[1770542049720,0.51628051,88.469,88.431,0.08304989]
[1770542050020,0.51628051,88.469,88.43,5.11016126]
[1770542050224,0.51628051,88.469,88.431,0.08267644]
[1770542050758,0.51628051,88.469,88.43,5.11016126]
[1770542051058,0.51628051,88.459,88.426,0.08230729]
[1770542051219,0.51628051,88.459,88.43,5.11016126]
[1770542051734,0.51628051,88.459,88.426,0.08230729]
[1770542051928,0.51628051,88.459,88.431,0.08194237]
[1770542052138,0.51628051,88.459,88.44,5.11016126]
[1770542052834,0.51628051,88.459,88.431,0.08194237]
[1770542053136,0.51628051,88.467,88.441,0.08158164]
[1770542053338,0.4989032,88.474,88.451,0.08122506]
[1770542053537,0.4989032,88.474,88.441,0.08122506]
[1770542054637,0.4989032,88.488,88.451,0.08087257]
[1770542055140,0.4989032,88.479,88.451,0.08087257]
[1770542055723,0.4989032,88.485,88.461,0.08052414]
[1770542056037,0.4989032,88.479,88.441,0.0801797]
[1770542057728,5.11155413,88.48,88.42,0.1]
[1770542057729,0.4989032,88.449,88.42,0.1]
[1770542058044,5.11155413,88.45,88.42,0.1]
[1770542058045,0.4989032,88.439,88.42,0.1]
[1770542059537,0.4989032,88.446,88.42,0.1]
[1770542059950,0.4989032,88.439,88.42,0.1]
[1770542062263,0.4989032,88.449,88.421,0.07819459]
[1770542063350,0.4989032,88.455,88.421,0.07819459]
[1770542063658,0.4989032,88.462,88.431,0.07787692]
[1770542064553,7.10013626,88.467,88.431,0.07787692]
[1770542064756,0.4989032,88.466,88.431,0.07787692]
[1770542065358,0.4989032,88.466,88.44,5.11155413]
[1770542065658,7.59903946,88.467,88.441,0.07725246]
[1770542065841,0.4989032,88.466,88.441,0.07725246]
[1770542066160,7.10013626,88.467,88.441,0.07725246]
[1770542066339,7.10013626,88.467,88.451,0.07694561]
[1770542066538,0.4989032,88.481,88.451,0.07694561]
[1770542066762,0.4989032,88.499,88.461,0.07664227]
[1770542067557,0.4989032,88.499,88.437,5.13032502]
[1770542067558,0.4989032,88.489,88.453,0.07664227]
[1770542068054,0.4989032,88.479,88.447,0.07634242]
[1770542068271,0.4989032,88.479,88.45,5.11155413]
[1770542069362,0.4989032,88.479,88.45,5.18760015]
[1770542071468,0.4989032,88.479,88.443,0.07546338]
[1770542072147,0.4989032,88.469,88.44,5.11155413]
[1770542072341,0.4989032,88.469,88.441,0.07517708]
[1770542073065,0.4989032,88.475,88.444,0.07489406]
[1770542074562,0.4989032,88.469,88.444,0.07489406]
[1770542076766,0.47473167,88.499,88.461,0.07379412]
[1770542077274,0.47473167,88.479,88.441,0.07352698]
[1770542077461,0.47473167,88.479,88.451,0.07352698]
[1770542077763,0.47473167,88.499,88.461,0.07352698]
[1770542078354,5.13032502,88.517,88.491,0.07326291]
[1770542078560,0.47473167,88.517,88.491,0.07326291]
[1770542079064,0.47473167,88.499,88.447,0.07300188]
[1770542079278,0.47473167,88.499,88.471,0.07300188]
[1770542079559,0.47473167,88.499,88.47,5.11155413]
[1770542079560,0.47473167,88.516,88.481,0.07300188]
[1770542079780,0.47473167,88.516,88.488,0.07300188]
[1770542081778,0.47473167,88.516,88.49,5.11155413]
[1770542082350,0.47473167,88.516,88.488,0.07300188]
[1770542082648,0.47473167,88.516,88.49,5.11155413]
[1770542085472,0.47473167,88.509,88.482,0.07149745]
[1770542086271,0.47473167,88.509,88.49,5.11155413]
[1770542089072,0.47473167,88.509,88.487,0.0712567]
[1770542090558,0.47473167,88.519,88.491,0.07032101]
[1770542090760,0.47473167,88.519,88.481,0.07009377]
[1770542091176,0.47473167,88.519,88.491,0.07009377]
[1770542091378,0.47473167,88.519,88.48,5.11155413]
[1770542091559,0.47473167,88.519,88.481,0.07009377]
[1770542091767,0.47473167,88.509,88.481,0.07009377]
[1770542093477,0.47473167,88.509,88.471,0.06964708]
[1770542095962,0.47473167,88.509,88.48,5.18055024]
[1770542096562,0.47473167,88.509,88.481,0.06899611]
[1770542096771,0.47473167,88.519,88.481,0.06899611]
[1770542098475,0.47473167,88.509,88.481,0.06899611]
[1770542100174,0.47473167,88.519,88.481,0.06899611]
[1770542100865,0.47473167,88.509,88.481,0.06899611]
[1770542101881,0.47473167,88.519,88.491,0.06775994]
[1770542102082,0.47473167,88.519,88.479,0.06775994]
[1770542102381,0.47473167,88.509,88.471,0.06775994]
[1770542102576,0.47473167,88.519,88.491,0.06775994]
[1770542103287,0.47473167,88.525,88.491,0.06775994]
[1770542104493,0.47473167,88.525,88.473,51.6]
[1770542104494,0.47473167,88.525,88.5,5.11155413]
[1770542104782,7.58191816,88.53,88.501,0.06736656]
[1770542104966,0.47473167,88.529,88.501,0.06736656]
[1770542106766,0.47473167,88.529,88.51,5.11155413]
[1770542107387,0.47473167,88.529,88.501,0.06736656]
[1770542107887,0.47473167,88.529,88.491,0.06642197]
[1770542108192,0.47473167,88.529,88.481,0.06642197]
[1770542108488,0.47473167,88.509,88.471,0.06642197]
[1770542108793,0.47473167,88.509,88.471,0.06623951]
[1770542110490,0.47473167,88.509,88.48,5.11155413]
[1770542111094,0.47473167,88.509,88.481,0.06588085]
[1770542111590,0.47473167,88.509,88.48,5.11155413]
[1770542112389,0.47473167,88.499,88.46,5.11155413]
[1770542112789,0.47473167,88.489,88.45,5.11155413]
[1770542113400,0.47473167,88.489,88.45,5.17708452]
[1770542113772,0.49286165,88.479,88.45,0.06553039]
[1770542114393,0.49286165,88.479,88.441,0.06518793]
[1770542116299,0.49286165,88.479,88.442,0.0648533]
[1770542116300,0.49286165,88.478,88.442,0.0648533]
[1770542116795,0.49286165,88.478,88.416,5.13032502]
[1770542116796,0.49286165,88.469,88.436,0.06468886]
[1770542117182,0.49286165,88.469,88.44,5.11155413]
[1770542117381,0.49286165,88.469,88.44,5.1121118]
[1770542118586,0.49286165,88.468,88.44,5.1121118]
[1770542118975,0.49286165,88.468,88.44,16.41913967]
[1770542122609,0.49286165,88.468,88.436,0.06468886]
[1770542123507,28.25413124,88.483,88.42,0.1]
[1770542123508,0.49286165,88.459,88.422,0.06374113]
[1770542124596,0.49286165,88.458,88.422,0.06374113]
[1770542125385,0.49286165,88.449,88.42,0.1]
[1770542125594,0.49286165,88.449,88.42,11.40954122]
[1770542126387,0.49286165,88.449,88.42,16.52165302]
[1770542126588,0.49286165,88.449,88.42,16.58494435]
[1770542127704,0.49286165,88.448,88.42,0.1]
[1770542128205,0.49286165,88.439,88.42,0.1]
[1770542128404,0.49286165,88.429,88.403,51.6]
[1770542128613,0.49286165,88.429,88.405,11.31152938]
[1770542128993,0.49286165,88.429,88.4,0.2719467]
[1770542129405,0.49286165,88.419,88.4,0.2719467]
[1770542130085,0.49286165,88.409,88.39,0.45292252]
[1770542130511,5.1121118,88.4,88.39,0.45292252]
[1770542130714,0.49286165,88.401,88.39,0.45292252]
[1770542131210,0.49286165,88.408,88.39,0.45292252]
[1770542131508,0.49286165,88.421,88.391,0.06257547]
[1770542131699,0.49286165,88.421,88.392,0.06257547]
[1770542132497,5.60497345,88.42,88.392,0.06257547]
[1770542132714,0.49286165,88.419,88.392,0.06257547]
[1770542133006,0.49286165,88.417,88.39,0.45292252]
[1770542133308,0.49286165,88.409,88.39,0.45292252]
[1770542135014,0.49286165,88.407,88.39,0.45292252]
[1770542137602,0.48652151,88.419,88.391,11.313369]
[1770542138115,0.48652151,88.418,88.39,0.45292252]
[1770542138499,0.48652151,88.409,88.39,0.45292252]
[1770542139815,0.48652151,88.408,88.39,0.45292252]
[1770542140516,0.48652151,88.399,88.39,0.45292252]
[1770542140820,0.48652151,88.399,88.38,0.1]
[1770542141015,0.48652151,88.399,88.37,0.1]
[1770542141312,0.48652151,88.389,88.37,0.1]
[1770542141798,0.48652151,88.379,88.37,0.1]
[1770542141999,0.48652151,88.377,88.37,0.1]
[1770542142894,0.48652151,88.399,88.37,0.56503027]
[1770542144032,0.48652151,88.378,88.36,0.1]
[1770542144314,0.48652151,88.369,88.36,0.1]
[1770542144503,0.48652151,88.376,88.36,0.1]
[1770542144813,0.48652151,88.369,88.35,0.1]
[1770542145709,0.48652151,88.379,88.351,0.46503027]
[1770542146516,0.48652151,88.377,88.351,0.46503027]
[1770542146896,0.48652151,88.377,88.35,0.1]
[1770542147512,0.48652151,88.377,88.326,28.30393857]
[1770542147513,0.48652151,88.359,88.318,0.46503027]
[1770542147705,0.48652151,88.359,88.323,11.32200455]
[1770542147900,0.48652151,88.357,88.33,0.56503027]
[1770542148309,0.48652151,88.363,88.331,0.46503027]
[1770542149011,0.48652151,88.359,88.33,0.56503027]
[1770542149323,5.13032502,88.395,88.33,0.56503027]
[1770542149324,0.48652151,88.379,88.351,0.46503027]
[1770542149522,0.48652151,88.379,88.35,5.1121118]
[1770542149523,0.48652151,88.378,88.343,0.46503027]
[1770542150023,0.48652151,88.378,88.345,0.46503027]
[1770542150207,0.48652151,88.376,88.345,0.46503027]
[1770542152425,0.48652151,88.376,88.347,0.46503027]
[1770542153522,0.48652151,88.375,88.336,0.46503027]
[1770542153722,0.48652151,88.375,88.344,0.46503027]
[1770542154425,11.31554529,88.374,88.344,0.46503027]
[1770542154603,0.48652151,88.373,88.344,0.46503027]
[1770542154806,0.48652151,88.379,88.346,0.46503027]
[1770542155002,0.48652151,88.389,88.351,0.46503027]
[1770542156125,0.48652151,88.389,88.361,0.46503027]
[1770542156533,0.48652151,88.389,88.363,0.46503027]
[1770542156724,0.48652151,88.397,88.363,0.46503027]
[1770542157730,0.48652151,88.397,88.371,0.46503027]
[1770542158811,0.48652151,88.397,88.372,0.46503027]
[1770542159011,0.48652151,88.403,88.372,0.46503027]
[1770542159644,11.31106561,88.409,88.363,0.46503027]
[1770542159645,0.48652151,88.399,88.363,0.46503027]
[1770542159814,11.31106561,88.409,88.341,0.46503027]
[1770542159815,0.48652151,88.385,88.341,0.46503027]
[1770542160007,0.48652151,88.379,88.354,11.31807168]
[1770542160236,0.48652151,88.387,88.362,11.31704472]
[1770542161414,0.48652151,88.438,88.381,0.46503027]
[1770542161618,0.48652151,88.437,88.401,0.46503027]
[1770542161841,0.48652151,88.419,88.391,0.46503027]
[1770542162434,0.48652151,88.428,88.391,0.46503027]
[1770542162624,0.48652151,88.428,88.401,0.46503027]
[1770542162942,0.48652151,88.446,88.411,0.46503027]
[1770542163242,0.48652151,88.439,88.403,0.46503027]
[1770542164122,0.48652151,88.439,88.405,0.46503027]
[1770542164318,0.48652151,88.439,88.38,56.57370636]
[1770542164319,0.48652151,88.429,88.379,11.31485284]
[1770542164523,0.48652151,88.429,88.366,28.29128373]
[1770542164524,0.48652151,88.409,88.38,0.46503027]
[1770542164947,0.48652151,88.409,88.371,0.46503027]
[1770542165149,0.48652151,88.409,88.374,11.31546773]
[1770542165352,0.48652151,88.409,88.375,0.46503027]
[1770542166341,0.49599531,88.407,88.375,0.46503027]
[1770542168342,0.49599531,88.405,88.375,0.46503027]
[1770542169638,0.49599531,88.399,88.366,0.47284443]
[1770542170629,0.49599531,88.399,88.371,0.47284443]
[1770542171048,0.49599531,88.406,88.371,0.47284443]
[1770542171829,0.49599531,88.417,88.381,0.47284443]
[1770542173253,0.49599531,88.417,88.383,0.47284443]
[1770542174055,0.45967935,88.424,88.391,0.47351375]
[1770542174528,0.45967935,88.438,88.401,0.47351375]
[1770542175442,0.45967935,88.438,88.403,0.47351375]
[1770542176932,0.45967935,88.436,88.403,0.47351375]
[1770542177458,0.45967935,88.436,88.405,0.47351375]
[1770542177663,0.45967935,88.434,88.405,0.47351375]
[1770542178435,0.45967935,88.429,88.399,0.47351375]
[1770542179950,0.45967935,88.427,88.399,0.47351375]
[1770542182556,0.45967935,88.427,88.384,28.28552768]
[1770542182557,0.45967935,88.451,88.401,0.47351375]
[1770542182729,0.45967935,88.449,88.411,0.47351375]
[1770542183739,0.45967935,88.447,88.413,0.47351375]
[1770542184638,0.45967935,88.447,88.421,0.47351375]
[1770542184947,0.45967935,88.445,88.421,0.47351375]
[1770542187163,0.45967935,88.439,88.409,0.47351375]
[1770542187537,0.45967935,88.429,88.401,51.6]
[1770542187864,0.45967935,88.429,88.401,0.47351375]
[1770542188151,0.45967935,88.429,88.39,5.11610409]
[1770542188152,0.45967935,88.429,88.391,0.47351375]
[1770542190662,0.45967935,88.427,88.391,0.47351375]
[1770542190870,0.45967935,88.427,88.392,11.31324101]
[1770542191070,0.45967935,88.434,88.401,0.47351375]
[1770542192757,0.45967935,88.432,88.401,0.47351375]
[1770542193451,0.45967935,88.443,88.411,0.47351375]
[1770542193948,0.45967935,88.443,88.421,0.47351375]
[1770542194379,0.45967935,88.443,88.411,0.47351375]
[1770542194572,11.76596744,88.447,88.421,0.47351375]
[1770542194769,0.45967935,88.446,88.421,0.47351375]
[1770542195855,0.45967935,88.446,88.412,0.46159864]
[1770542196654,0.47532598,88.444,88.412,0.46159864]
[1770542196870,0.47532598,88.444,88.413,0.46159864]
[1770542198779,11.30671732,88.443,88.413,0.46159864]
[1770542198952,0.47532598,88.439,88.406,0.46159864]
[1770542199650,0.47532598,88.439,88.407,0.46159864]
[1770542199855,0.47532598,88.439,88.411,0.46159864]
[1770542201985,0.47532598,88.439,88.413,0.46159864]
[1770542203283,0.47532598,88.45,88.415,0.46159864]
[1770542203475,0.47532598,88.448,88.415,0.46159864]
[1770542204086,0.47532598,88.448,88.414,11.31042595]
[1770542204288,0.47532598,88.448,88.409,0.46159864]
[1770542204659,5.11610409,88.44,88.402,0.46159864]
[1770542204860,0.47532598,88.439,88.402,0.46159864]
[1770542205663,0.47532598,88.437,88.402,0.46159864]
[1770542206058,5.11610409,88.43,88.39,5.11610409]
[1770542206260,0.47532598,88.419,88.389,0.46159864]
[1770542206569,39.57574797,88.438,88.372,0.46159864]
[1770542206570,0.47532598,88.409,88.372,0.46159864]
[1770542206962,0.47532598,88.399,88.361,0.46159864]
[1770542207283,0.47532598,88.399,88.37,5.11610409]
[1770542207473,0.47532598,88.399,88.38,5.11610409]
[1770542207677,0.47532598,88.399,88.375,0.46159864]
[1770542207886,11.31004218,88.417,88.391,0.46159864]
[1770542208065,0.47532598,88.416,88.381,0.46159864]
[1770542208267,0.47532598,88.416,88.391,0.46159864]
[1770542210495,0.47532598,88.423,88.393,0.46159864]
[1770542210680,11.30850739,88.429,88.393,0.46159864]
[1770542210898,0.47532598,88.428,88.401,0.46159864]
[1770542213488,0.47532598,88.426,88.393,0.46159864]
[1770542214794,0.47532598,88.419,88.393,0.46159864]
[1770542215388,0.47532598,88.417,88.385,0.46159864]
[1770542217497,0.47532598,88.415,88.385,0.46159864]
[1770542217792,0.47532598,88.409,88.374,0.46159864]
[1770542218786,0.47532598,88.408,88.376,0.46159864]
[1770542219287,0.47532598,88.439,88.401,0.46159864]
[1770542220690,0.47532598,88.437,88.403,0.46159864]
[1770542220899,11.30735656,88.438,88.411,0.46159864]
[1770542221073,0.47532598,88.447,88.411,0.46159864]
[1770542221278,11.30480001,88.458,88.431,0.46159864]
[1770542221493,0.47532598,88.457,88.431,0.46159864]
[1770542222892,11.30160595,88.483,88.451,0.46159864]
[1770542223104,0.47532598,88.482,88.46,5.11610409]
[1770542223717,0.2,88.5,88.471,0.46159864]
[1770542223901,0.2,88.5,88.48,5.11610409]
[1770542224099,0.2,88.5,88.478,0.46159864]
[1770542224414,0.2,88.5,88.491,0.46159864]
[1770542224600,0.2,88.52,88.493,0.46159864]
[1770542224795,0.47532598,88.529,88.492,11.76205517]
[1770542225002,0.47532598,88.529,88.492,0.46159864]
[1770542225211,11.7702831,88.536,88.501,0.46159864]
[1770542225405,0.47532598,88.535,88.51,13.67121384]
[1770542225597,0.2,88.54,88.521,0.46159864]
[1770542225796,0.48691124,88.539,88.511,0.48963811]
[1770542225996,0.48691124,88.538,88.501,0.48963811]
[1770542226615,0.48691124,88.536,88.501,0.48963811]
[1770542227602,0.48691124,88.536,88.502,11.78881778]
[1770542227803,0.48691124,88.529,88.494,0.48963811]
[1770542228394,0.48691124,88.529,88.491,0.48963811]
[1770542228703,0.48691124,88.529,88.501,0.48963811]
[1770542228907,0.48691124,88.529,88.503,0.48963811]
[1770542229301,0.48691124,88.539,88.503,0.48963811]
[1770542229501,0.48691124,88.538,88.503,0.48963811]
[1770542230224,0.2,88.54,88.511,0.48963811]
[1770542230727,0.48691124,88.539,88.513,0.48963811]
[1770542231627,0.2,88.54,88.513,0.48963811]
[1770542231835,0.2,88.54,88.521,0.48963811]
[1770542232716,0.2,88.54,88.523,0.48963811]
[1770542233616,0.48082634,88.539,88.513,11.29771485]
[1770542233816,0.48082634,88.539,88.501,0.48007062]
[1770542234032,0.48082634,88.539,88.511,11.29796288]
[1770542234315,0.48082634,88.539,88.512,0.48007062]
[1770542235100,0.2,88.54,88.52,11.29676442]
[1770542235305,0.2,88.54,88.521,0.48007062]
[1770542235812,0.2,88.54,88.522,11.29662682]
[1770542236222,0.2,88.54,88.523,0.48007062]
[1770542236422,0.48082634,88.539,88.51,51.6]
[1770542236720,0.48082634,88.538,88.5,65.27121384]
[1770542236917,0.2,88.54,88.51,13.67121384]
[1770542237237,0.48082634,88.539,88.514,11.297628]
[1770542237407,0.48082634,88.539,88.495,51.6]
[1770542237408,0.48082634,88.539,88.503,11.29902222]
[1770542238228,0.48082634,88.529,88.491,0.48007062]
[1770542238729,0.48082634,88.529,88.489,11.30080924]
[1770542238929,0.48082634,88.529,88.49,0.48007062]
[1770542239132,0.48082634,88.519,88.49,0.48007062]
[1770542239735,0.48082634,88.509,88.475,0.48007062]
[1770542240428,0.48082634,88.507,88.475,0.48007062]
[1770542240836,13.67420171,88.5,88.468,11.30350413]
[1770542241028,0.48082634,88.499,88.469,0.48007062]
[1770542242528,0.48082634,88.498,88.469,0.48007062]
[1770542242935,0.48082634,88.498,88.47,11.30326664]
[1770542243832,0.48082634,88.498,88.469,0.48007062]
[1770542244138,0.48082634,88.497,88.469,11.78341275]
[1770542244828,11.29908221,88.503,88.47,0.48007062]
[1770542245036,11.29908221,88.503,88.469,11.30334213]
[1770542245037,0.48082634,88.52,88.481,0.48007062]
[1770542245924,0.48082634,88.519,88.481,0.48007062]
[1770542246537,0.48082634,88.517,88.483,0.48007062]
[1770542247534,0.48082634,88.509,88.476,11.78253593]
[1770542247712,0.48082634,88.509,88.476,11.30246531]
[1770542247921,0.48082634,88.509,88.477,0.48007062]
[1770542248327,0.48082634,88.499,88.47,52.08007062]
[1770542248641,0.48082634,88.498,88.47,52.08007062]
[1770542248942,0.48082634,88.489,88.466,11.30365926]
[1770542249136,0.48082634,88.496,88.462,0.48007062]
[1770542250115,0.48082634,88.503,88.472,0.48007062]
[1770542250717,0.48082634,88.503,88.473,11.30288336]
[1770542252744,0.48082634,88.503,88.476,0.48007062]
[1770542252920,0.48082634,88.519,88.476,0.48007062]
[1770542253442,0.48082634,88.519,88.48,13.6831685]
[1770542253636,0.48082634,88.529,88.491,0.48007062]
[1770542253848,0.48082634,88.529,88.501,0.48007062]
[1770542254836,0.48082634,88.529,88.502,11.29917967]
[1770542255159,0.48082634,88.529,88.503,0.48007062]
[1770542255521,0.48082634,88.537,88.511,0.48007062]
[1770542255721,0.2,88.54,88.511,0.48007062]
[1770542257036,0.2,88.54,88.51,13.6831685]
[1770542257037,0.2,88.54,88.513,0.46831734]
[1770542257740,0.2,88.54,88.521,0.46831734]
[1770542258827,0.46389003,88.553,88.53,13.6831685]
[1770542259028,0.46389003,88.569,88.532,0.46831734]
[1770542259424,0.46389003,88.569,88.541,0.46831734]
[1770542259630,0.2,88.57,88.55,13.6831685]
[1770542259829,0.46389003,88.569,88.534,0.46831734]
[1770542260142,0.2,88.57,88.541,0.46831734]
[1770542260450,0.2,88.57,88.548,0.46831734]
[1770542260624,0.2,88.57,88.531,39.53417445]
[1770542260625,0.46389003,88.569,88.531,11.29547841]
[1770542260828,0.46389003,88.559,88.531,11.29547841]
[1770542261027,0.46389003,88.559,88.525,0.46831734]
[1770542262827,11.29063216,88.569,88.531,0.46831734]
[1770542262828,0.46389003,88.569,88.531,0.46831734]
[1770542263022,11.29063216,88.569,88.53,13.6831685]
[1770542263249,0.46389003,88.559,88.516,0.46831734]
[1770542263846,0.46389003,88.549,88.511,0.46831734]
[1770542264051,0.46389003,88.549,88.514,11.29758057]
[1770542264231,0.46389003,88.549,88.518,11.29707436]
[1770542265634,0.46389003,88.557,88.521,0.46831734]
[1770542267734,0.46389003,88.549,88.522,11.29662682]
[1770542268251,0.46389003,88.549,88.515,11.29750962]
[1770542269051,11.29228962,88.556,88.505,11.29876057]
[1770542269052,0.46389003,88.539,88.505,11.29876057]
[1770542269234,0.46389003,88.529,88.505,11.29876057]
[1770542269433,0.46389003,88.529,88.499,11.29946003]
[1770542269740,0.46389003,88.529,88.503,11.29895299]
[1770542269934,0.46389003,88.519,88.489,0.46831734]
[1770542270135,0.46389003,88.519,88.493,11.30027743]
[1770542270751,0.46389003,88.519,88.489,0.46831734]
[1770542270752,0.46389003,88.519,88.492,11.30043255]
[1770542270940,0.46389003,88.519,88.489,0.46831734]